Cogmind - Beta 15 @@@ ROGUE MODE // 2025.07.31 @ 18:03:42 Player: satan5 Result: Destroyed by G-67 Veteran with Field Laser Performance ------------- Evolutions (6) 3000 Regions Visited (25) 5000 Robots Destroyed (487) 2435 Value Destroyed (22772) 22772 Prototype IDs (74) 1480 Alien Tech Used (2) 400 Bonus (16001) 16001 TOTAL SCORE: 51088 Bonus ------- Triggered High Security 500 High Alert Combat Kills 6660 Follower Combat Kills 897 Entered Garrisons 200 Met Data Miner 300 Met Imprinter 300 Destroyed Z-Imprinter 1000 Triggered Deep Caves Wall 500 Exposed GOLEM Chamber 500 Acquired ECA 300 Met Warlord at Base 500 MAIN.C Attacked Warlord 500 Warlord Defense Kills 4846 Friendly Fire -1002 Cogmind --------- Core Integrity 0/1150 Matter 110/300 Energy 100/100 System Corruption 24% Temperature Cool (0) Movement Core (1250) Ox24 Location -4/Warlord Parts ------- > --- POWER (2) -------- (None) > --- PROPULSION (4) --- Assembled Alloy Leg > --- UTILITY (10) ----- High-capacity Storage Unit Advanced Signal Interpreter Experimental Cloaking Device (fused) Experimental Focal Shield Advanced System Shield GOLEM Unit > --- WEAPON (3) ------- RU-N14's Throwing Claymores v3 RU-N14's Throwing Claymores v3 RU-N14's Throwing Claymores v3 > --- INVENTORY (20) --- Experimental Heat Sink Advanced Sensor Array Encrypted Comm Array Mapping Drone Bay (3/3) GOLEM Unit Vortex Rifle (35) Vortex Rifle (35) Vortex Shotgun (50) Vortex Shotgun (50) Mini Smartbomb Launcher Peak State ------------ > --- POWER ------------ Vortex Chain Reactor > --- PROPULSION ------- Improved Heavy Treads Heavy Siege Treads > --- UTILITY ---------- Assembled Nanovents Assembled Nanovents High-capacity Storage Unit Assembled Biocell Array Advanced Signal Interpreter Experimental Targeting Computer Experimental Cloaking Device Advanced System Shield GOLEM Unit > --- WEAPON ----------- Assembled Focal Cannon Assembled Focal Cannon Assembled Focal Cannon > --- INVENTORY -------- Experimental Heat Sink Advanced Sensor Array Encrypted Comm Array Experimental Focal Shield Mapping Drone Bay GOLEM Unit GOLEM Unit Transdimensional Reconstructor Vortex Rifle Vortex Rifle Vortex Shotgun Vortex Shotgun Mini Smartbomb Launcher Neutron Missile Launcher RU-N14's Throwing Claymores v3 RU-N14's Throwing Claymores v3 RU-N14's Throwing Claymores v3 [Rating: 160] Favorites ----------- Power Assembled Flux Generator Engine Improved Deuterium Engine Power Core Nuclear Core Reactor Assembled Flux Generator Propulsion Improved Heavy Treads Treads Improved Heavy Treads Leg Improved Titanium Leg Wheel Wheel Hover Unit Cooled Aerolev Unit Utility High-capacity Storage Unit Device GOLEM Unit Storage High-capacity Storage Unit Processor Advanced Signal Interpreter Hackware Makeshift System Shield Protection Assembled Alloy Armor Weapon Assembled Focal Cannon Energy Gun Gatling Laser Energy Cannon Assembled Focal Cannon Ballistic Gun Gauss Rifle Ballistic Cannon Gauss Cannon Launcher Rocket Array Special Weapon Molecular Deconstructor Slashing Weapon Power Sword Build | -11 -10 -10 -8 -7 -7 -7 -7 -6 -6 -6 -6 -6 -6 -6 -6 -5 -5 -5 -5 -5 -4 -4 -4 -4 -4 ------- Run | Yrd Mat Sub Mat Fac Low Low Dat Pro Fac Gar Fac Low Low Zio Dee Pro Fac Upp Upp Zhi Pro Fac Upp Upp War Slots Evolved 12 | . . . 4 2 . . . . 2 . . . . . . . 2 . . . . 2 . . . Power 1 | . . . . . . . . . 1 . . . . . . . . . . . . . . . . Propulsion 2 | . . . 2 . . . . . . . . . . . . . . . . . . . . . . Utility 8 | . . . 2 1 . . . . 1 . . . . . . . 2 . . . . 2 . . . Weapon 1 | . . . . 1 . . . . . . . . . . . . . . . . . . . . . Parts Attached 219 | 7 5 6 21 25 9 1 . 1 20 32 15 1 3 8 17 . 6 1 . 5 2 16 2 1 15 Power 21 | 1 . 1 2 3 1 . . 1 2 4 2 . 1 . 1 . . . . 1 . . . . 1 Engine 9 | 1 . 1 . 1 . . . . 1 4 . . 1 . . . . . . . . . . . . Core 9 | . . . 2 2 1 . . 1 1 . 2 . . . . . . . . . . . . . . Reactor 3 | . . . . . . . . . . . . . . . 1 . . . . 1 . . . . 1 Propulsion 46 | 2 . 2 9 9 1 . . . 5 11 . . . . 1 . . . . 1 . 4 1 . . Treads 36 | 2 . 2 9 6 1 . . . 3 7 . . . . 1 . . . . . . 4 1 . . Leg 8 | . . . . 3 . . . . . 4 . . . . . . . . . 1 . . . . . Wheel 1 | . . . . . . . . . 1 . . . . . . . . . . . . . . . . Hover 1 | . . . . . . . . . 1 . . . . . . . . . . . . . . . . Flight . | . . . . . . . . . . . . . . . . . . . . . . . . . . Utility 80 | 2 2 . 3 6 2 . . . 8 7 5 1 2 7 8 . 5 1 . 3 2 6 1 1 8 Device 45 | 1 . . 2 3 1 . . . 3 7 3 1 2 1 4 . 4 1 . 2 2 2 1 1 4 Storage 10 | 1 1 . 1 . . . . . 1 . 1 . . 1 2 . . . . 1 . 1 . . . Processor 19 | . 1 . . 2 1 . . . 4 . 1 . . 4 . . 1 . . . . 1 . . 4 Hackware 4 | . . . . 1 . . . . . . . . . 1 . . . . . . . 2 . . . Protection 2 | . . . . . . . . . . . . . . . 2 . . . . . . . . . . Artifact . | . . . . . . . . . . . . . . . . . . . . . . . . . . Weapon 72 | 2 3 3 7 7 5 1 . . 5 10 8 . . 1 7 . 1 . . . . 6 . . 6 Energy Gun 25 | 1 . 1 1 2 1 . . . 5 4 3 . . . 2 . . . . . . 2 . . 3 Energy Cannon 16 | . . 2 2 . 1 1 . . . 3 4 . . . 1 . 1 . . . . 1 . . . Ballistic Gun 7 | 1 2 . . 1 1 . . . . 1 1 . . . . . . . . . . . . . . Ballistic Cannon 4 | . . . 1 2 . . . . . 1 . . . . . . . . . . . . . . . Launcher 10 | . 1 . 3 2 . . . . . . . . . . 1 . . . . . . 3 . . . Special Weapon 8 | . . . . . 1 . . . . . . . . 1 3 . . . . . . . . . 3 Impact Weapon . | . . . . . . . . . . . . . . . . . . . . . . . . . . Slashing Weapon 2 | . . . . . 1 . . . . 1 . . . . . . . . . . . . . . . Piercing Weapon . | . . . . . . . . . . . . . . . . . . . . . . . . . . Special Melee Weapon . | . . . . . . . . . . . . . . . . . . . . . . . . . . Unidentified Prototypes 41 | . . . 1 3 1 . . . 1 1 3 . . 5 7 . 1 . . 5 . 4 . . 9 Parts Lost 85 | . . 3 8 16 . . . 6 1 16 4 . 1 . 2 . . . . . . 10 2 . 16 Power 13 | . . 1 1 2 . . . 1 . 2 3 . 1 . . . . . . . . 1 . . 1 Propulsion 28 | . . 2 3 9 . . . 3 . 6 . . . . . . . . . . . 1 2 . 2 Utility 19 | . . . 3 . . . . 1 . 1 . . . . . . . . . . . 4 . . 10 Weapon 25 | . . . 1 5 . . . 1 1 7 1 . . . 2 . . . . . . 4 . . 3 Highest Loss Streak 12 | . . 3 7 3 . . . 5 1 8 3 . 1 . 2 . . . . . . 3 1 . 12 To Critical Strikes 2 | . . . . . . . . 1 . 1 . . . . . . . . . . . . . . . Average Backups 15 | 1 10 14 23 23 5 5 5 4 9 11 12 16 16 17 17 16 15 15 14 15 15 15 12 11 15 Power 1 | . 1 . 4 5 2 2 2 1 1 1 . 1 . . . 1 1 1 1 1 1 1 1 1 . Propulsion 1 | . 1 . 2 1 . . . . . . 1 2 2 2 . 1 1 1 1 1 1 1 1 . . Utility 5 | . 3 6 4 7 . . . . 2 4 5 5 5 4 7 8 5 5 5 5 7 6 4 4 5 Weapon 6 | . 5 7 10 9 2 3 3 2 4 4 5 7 7 9 8 5 6 7 6 6 4 5 3 3 7 Tool/Special . | . . . . . . . . . . . . . . . . . . . . . . . . . . Unused Backups 70 | . 2 7 10 25 . . . . 1 2 1 . . 1 5 . 1 . . 1 1 5 . . 8 Power 11 | . . . 2 7 . . . . . . 1 . . . . . . . . . . . . . 1 Propulsion 2 | . . 1 . . . . . . . . . . . . 1 . . . . . . . . . . Utility 20 | . . 1 2 7 . . . . 1 1 . . . 1 4 . 1 . . . . . . . 2 Weapon 37 | . 2 5 6 11 . . . . . 1 . . . . . . . . . 1 1 5 . . 5 Tool/Special . | . . . . . . . . . . . . . . . . . . . . . . . . . . Average Slot Usage (%) 84 | . 99 99 90 95 75 84 84 67 84 90 84 85 85 85 78 73 75 76 76 76 76 77 77 77 75 Engine 3 | . 14 13 1 . . . . . . 11 6 . 2 6 5 . . . . . . . . . . Core 2 | . . . 7 5 3 7 7 6 11 . 4 13 10 6 1 . . . . . . . . . . Reactor 2 | . . . . . . . . . . . . . . . 4 6 5 5 5 5 5 5 5 5 4 Treads 14 | . 27 27 35 23 . 7 7 3 11 9 13 13 13 13 13 13 11 11 11 10 11 9 9 10 9 Leg 1 | . . . . 3 15 15 15 6 . 9 . . . . . . . . . . . . . . . Device 9 | . 5 . 12 7 11 7 7 3 5 4 6 11 12 12 10 6 16 11 11 11 11 10 14 15 17 Storage 8 | . 14 14 9 6 . . . . 5 6 6 6 6 9 8 13 11 10 11 11 10 9 10 10 9 Processor 16 | . 8 14 6 14 18 23 23 23 21 26 25 20 20 15 13 13 11 17 17 17 17 15 10 10 10 Hackware 2 | . . . . 6 7 7 7 7 4 . . . . . . . . . . . . 5 10 10 6 Energy Gun 2 | . 5 6 . 5 2 . . . 4 6 4 6 6 5 3 . . . . . . . . . . Energy Cannon 10 | . . 11 16 . 5 6 7 6 4 9 8 6 6 6 12 18 17 17 16 17 17 14 13 14 12 Ballistic Gun 2 | . 22 9 . . 2 . . . . . 2 6 6 6 . . . . . . . . . . . Ballistic Cannon 1 | . . . . 13 . . . . . . . . . . . . . . . . . . . . . Peak Build Rating 160 | 7 12 14 36 54 53 54 53 54 68 87 94 94 93 99 123 123 141 136 135 139 141 159 147 143 160 Average Rating 88 | 5 10 13 27 44 36 52 53 45 53 69 84 91 90 91 107 122 138 135 134 135 136 149 141 140 144 On Entrance 82 | . 7 12 14 28 24 53 53 53 30 63 86 94 91 89 95 123 123 136 135 135 137 137 145 137 143 Naked Turns . | . . . . . . . . . . . . . . . . . . . . . . . . . . Heaviest Build 138 | 14 32 39 105 111 21 20 20 20 52 68 84 84 89 83 120 120 135 128 128 131 130 135 136 136 138 Greatest Support 162 | 40 40 40 112 88 30 30 30 30 30 162 150 150 150 150 150 150 150 150 150 150 150 150 150 145 145 Greatest Overweight (x) 24 | . . . 2 3 3 . . 6 7 4 . . . . . . . . . 1 . . 1 . 24 Average Overweight (x) . | . . . . 1 . . . 2 3 . . . . . . . . . . . . . . . . Largest Inventory Capacity 25 | 8 15 15 25 25 5 5 5 5 15 15 20 20 20 20 20 20 20 20 20 20 20 20 20 20 20 Average Capacity 18 | 7 12 15 24 24 5 5 5 5 13 15 16 20 20 20 20 20 20 20 20 20 20 20 20 20 20 Most Carried 25 | 3 15 15 25 25 5 5 5 5 15 15 20 20 20 20 20 20 20 20 19 20 20 20 18 14 20 Average Carried 17 | 1 10 14 23 23 4 5 5 4 9 13 15 19 19 19 19 20 19 19 18 19 19 18 15 13 17 Final Capacity 25 | 8 15 15 25 5 5 5 5 5 15 15 20 20 20 20 20 20 20 20 20 20 20 20 20 20 20 Final Carried 25 | 3 15 15 25 5 5 5 5 3 15 15 20 20 19 20 20 20 20 19 19 20 20 18 12 14 11 Class Distribution -------------------- 29% | Golem 18% | Mutant 14% | Scavenger-Gunner 8% | Skirmisher 8% | Hacker-Golem 7% | Gunner 6% | Scavenger-Mutant Dominant Class ---------------- Mutant | -10/Materials Mutant | -10/Subcaves Scavenger-Mutant | -8/Materials Skirmisher | -7/Factory Mutant | -7/Lower Caves Gunner | -7/Lower Caves Gunner | -7/Data Miner Gunner | -6/Proximity Caves Mutant | -6/Factory Scavenger-Gunner | -6/Garrison Gunner | -6/Factory Scavenger-Gunner | -6/Lower Caves Scavenger-Gunner | -6/Lower Caves Scavenger-Tank | -6/Zion Scavenger-Gunner | -6/Deep Caves Golem | -5/Proximity Caves Golem | -5/Factory Golem | -5/Upper Caves Golem | -5/Upper Caves Golem | -5/Zhirov Golem | -4/Proximity Caves Golem | -4/Factory Hacker-Golem | -4/Upper Caves Hacker-Golem | -4/Upper Caves Golem | -4/Warlord Resources | -11 -10 -10 -8 -7 -7 -7 -7 -6 -6 -6 -6 -6 -6 -6 -6 -5 -5 -5 -5 -5 -4 -4 -4 -4 -4 ----------- Run | Yrd Mat Sub Mat Fac Low Low Dat Pro Fac Gar Fac Low Low Zio Dee Pro Fac Upp Upp Zhi Pro Fac Upp Upp War Matter Collected 8876 | 231 297 235 848 1534 227 207 . 183 330 875 505 178 175 130 506 65 98 33 55 110 60 1083 156 223 532 Remotely 96 | . . . . . . . . . . . . . . . 96 . . . . . . . . . . Salvage Created 20598 | 81 467 492 1533 2275 61 31 . 89 964 2060 958 65 . . 1282 356 698 . 325 345 95 6713 254 242 1212 Parts 916 | 13 37 22 96 142 7 4 . 8 41 74 45 4 . . 17 16 28 . 14 6 4 282 13 10 33 Haulers Intercepted 13 | . 1 . 3 4 . . . . . . . . . . . . . . . . . 5 . . . Recyclers Shooed 4 | . . . . 1 . . . . . . 1 . . . . . 1 . . . . 1 . . . Parts Field Recycled . | . . . . . . . . . . . . . . . . . . . . . . . . . . Retrieved Matter . | . . . . . . . . . . . . . . . . . . . . . . . . . . Parts Self-Destructed 112 | . . 20 . . 6 2 . 3 . . . 17 13 . . 13 . . 13 3 4 . 8 10 . Prevented 7 | . . . . . . . . . . . . 2 3 . . . . . 2 . . . . . . Kills | -11 -10 -10 -8 -7 -7 -7 -7 -6 -6 -6 -6 -6 -6 -6 -6 -5 -5 -5 -5 -5 -4 -4 -4 -4 -4 ------- Run | Yrd Mat Sub Mat Fac Low Low Dat Pro Fac Gar Fac Low Low Zio Dee Pro Fac Upp Upp Zhi Pro Fac Upp Upp War Combat Hostiles Destroyed 417 | . 16 9 39 63 3 3 . 6 15 30 12 1 . . 49 8 14 . 10 . 1 92 8 3 35 Guns 46 | . 10 5 . 6 . . . . 4 13 5 1 . . 2 . . . . . . . . . . Cannons 151 | . . 4 12 20 2 . . . 2 7 4 . . . 7 6 11 . 5 . 1 52 3 3 12 AOE 191 | . 6 . 23 37 . 3 . 4 9 7 . . . . 38 2 3 . 5 . . 26 5 . 23 Classes Destroyed 30 | 1 5 2 7 2 . . . 1 . . 1 . . . 4 1 . . . . 1 2 . . 3 Worker 21 | . . . 2 8 . . . . 4 . . . . . . . 1 . . . . 6 . . . Builder 32 | . 1 . 4 15 . . . . 3 . 1 . . . . . . . . . . 8 . . . Tunneler 6 | 4 1 . . 1 . . . . . . . . . . . . . . . . . . . . . Hauler 13 | . 1 . 3 4 . . . . . . . . . . . . . . . . . 5 . . . Recycler 11 | . . . 1 6 . . . . 2 . 1 . . . . . . . . . . 1 . . . Minesweeper 1 | . . . . . . . . . . . . . . . . 1 . . . . . . . . . Mechanic 3 | . . . . 1 . . . . 1 . . . . . . . . . . . . . . . 1 Operator 2 | . . . 1 1 . . . . . . . . . . . . . . . . . . . . . Drone 4 | . . . . . . . . 2 . . . . . . . 2 . . . . . . . . . Watcher 22 | . 3 . 4 5 . . . . 1 . . . . . . . 1 . . . . 8 . . . Swarmer 63 | . 9 2 4 7 3 3 . . . 6 . . . . . 1 4 . 5 . . 7 5 . 7 Saboteur 1 | . . . . . . . . . . . . . . . . . . . . . . 1 . . . Grunt 151 | . 7 3 22 33 . . . . 11 13 6 1 . . . 3 5 . 5 . . 39 . . 3 Brawler 12 | . . . 1 3 . . . . . . . . . . . . . . . . . 4 . . 4 Duelist 10 | . . . 1 2 . . . . . . 1 . . . . . . . . . . 2 . . 4 Protector 8 | . . . 1 4 . . . . . . . . . . . . . . . . . 1 . . 2 Sentry 34 | . . 1 8 4 . . . . 2 9 2 . . . . 1 2 . . . . 4 . 1 . Demolisher 1 | . . . . . . . . . . . . . . . . . . . . . . . . . 1 Specialist 4 | . . . . . . . . . . . . . . . . . . . . . . 4 . . . Hunter 24 | . . . 2 1 . . . 4 . 1 . . . . . . 1 . . . . 9 2 2 2 Programmer 41 | . . . . 9 . . . . 2 1 2 . . . . 1 2 . . . . 20 . . 4 Heavy 2 | . . . . . . . . . . . 1 . . . . . . . . . . 1 . . . Behemoth 2 | . . . . . . . . . . . . . . . . . . . . . 1 . 1 . . Enhanced Grunt 1 | . . . . . . . . . . . . . . . . . . . . . . . . . 1 Striker 3 | . . . . . . . . . . . . . . . . . . . . . . . . . 3 Executioner 5 | . . . . . . . . . . . . . . . . . . . . . . . . . 5 Subdweller 3 | . . 3 . . . . . . . . . . . . . . . . . . . . . . . Z-Light 1 | . . . . . . . . . . . . . . . 1 . . . . . . . . . . Assembler 2 | . . . . . . . . . . . . . . . 2 . . . . . . . . . . Assembled 34 | . . . . . . . . . . . . . . . 34 . . . . . . . . . . Golem 13 | . . . . . . . . . . . . . . . 13 . . . . . . . . . . Butcher 1 | . . . . . . . . . . . . . . . 1 . . . . . . . . . . Best Kill Streak 36 | 4 10 2 8 15 2 3 . 3 9 8 3 1 . . 36 3 4 . 5 . 1 15 5 2 17 Combat Bots Only 34 | . 8 2 8 7 2 3 . 3 6 8 3 1 . . 34 3 4 . 5 . 1 14 5 2 16 Max Kills in Single Turn 28 | 2 2 1 5 6 1 3 . 1 6 3 2 1 . . 28 1 3 . 3 . 1 5 5 1 5 Gunslinging 1 | . 1 . . . . . . . . 1 . . . . . . . . . . . . . . . Exploded 27 | . 2 . 5 4 . 3 . 1 4 3 . . . . 27 1 3 . 3 . . 4 5 . 5 Melee . | . . . . . . . . . . . . . . . . . . . . . . . . . . Uniques/NPCs Destroyed 1 | . . . . . . . . . . . . . . . 1 . . . . . . . . . . Z-Imprinter (-6/Deep Caves) Combat | -11 -10 -10 -8 -7 -7 -7 -7 -6 -6 -6 -6 -6 -6 -6 -6 -5 -5 -5 -5 -5 -4 -4 -4 -4 -4 -------- Run | Yrd Mat Sub Mat Fac Low Low Dat Pro Fac Gar Fac Low Low Zio Dee Pro Fac Upp Upp Zhi Pro Fac Upp Upp War Hostile Shots Fired 1726 | . 40 55 114 275 7 3 . 42 54 272 117 8 4 . 20 10 32 . 27 . 6 430 99 16 95 Missed 531 | . 14 21 30 85 3 3 . 10 20 93 33 3 2 . 2 4 12 . 14 . 3 124 21 4 30 Hits 1195 | . 26 34 84 190 4 . . 32 34 179 84 5 2 . 18 6 20 . 13 . 3 306 78 12 65 Melee 29 | . . . 6 . . . . . . . 1 . . . . . . . . . . 10 . . 12 Projectile 1166 | . 26 34 78 190 4 . . 32 34 179 83 5 2 . 18 6 20 . 13 . 3 296 78 12 53 AOE 4 | . . . . . . . . . . . . . . . . . . . . . . . . . 4 Critical Strikes 40 | . 1 2 . 7 . . . 1 3 6 2 . . . 1 . . . 1 . . 10 2 1 3 Part Disruptions 6 | . . . . . . . . . . . . . . . . . . . . . . 1 . . 5 Damage Taken 21787 | . 293 574 1815 2807 62 44 . 529 509 2161 1106 80 37 . 651 116 344 . 276 . 101 6489 1019 154 2620 Core 2392 | . 56 76 183 347 . . . 68 70 235 106 13 . . 15 . 9 . 30 . 36 619 38 . 491 Absorbed by Shields 420 | . . . . . . . . . . 30 . . . . . . . . . . . . 306 72 12 Reduced by Siege Mode 731 | . . . . . . . . . . 72 52 . . . 91 . . . . . . 384 101 31 . Ignored by Resistances 365 | . . . . . . . . . . . . . . . . . 52 . . . . 313 . . . Regen/Repaired (Parts) 2000 | . 76 . . . . . . . 82 . . . . . . . . . . . . 1811 . . 31 Core Remaining (%) 65 | 100 . 47 66 . . . . 40 . . . . . . . 48 . . . . 92 . . . . Volleys Fired 904 | 4 39 79 76 101 5 1 . 17 22 68 33 7 12 3 84 11 20 . 14 7 8 207 34 6 46 Largest 3 | 2 2 2 2 3 2 1 . 2 2 3 3 3 1 1 3 3 3 . 3 3 3 3 3 3 3 Hottest 243 | 60 60 160 160 160 99 45 . 65 160 243 243 123 105 105 222 155 155 . 75 75 75 146 115 75 99 Shots Fired 1782 | 8 71 132 122 216 7 1 . 18 37 163 88 17 14 3 148 28 54 . 26 13 16 428 56 20 96 Gun 424 | 8 65 85 . 51 4 . . . 22 97 46 11 1 . 28 . . . . . . 4 2 . . Cannon 1185 | . . 47 98 145 2 . . 1 9 60 42 6 13 3 106 25 54 . 23 13 16 378 47 20 77 Launcher 148 | . 6 . 24 20 . 1 . 6 6 6 . . . . 8 3 . . 3 . . 41 7 . 17 Special 25 | . . . . . 1 . . 11 . . . . . . 6 . . . . . . 5 . . 2 Kinetic 302 | 4 50 42 24 145 2 . . . . 10 12 8 1 . 4 . . . . . . . . . . Thermal 1112 | 4 15 90 92 51 4 . . 1 31 51 16 6 13 3 91 25 54 . 23 13 16 369 47 20 77 Explosive 112 | . 6 . 6 20 . 1 . 6 6 6 . . . . 14 3 . . 3 . . 15 7 . 19 Electromagnetic 244 | . . . . . . . . . . 96 60 3 . . 39 . . . . . . 44 2 . . Robot Hit Streak 47 | 2 11 13 25 18 3 . . 4 7 22 9 5 . . 35 30 47 . 18 16 4 31 20 33 34 Robot Miss Streak 8 | 1 4 4 4 8 . . . 4 4 4 4 3 . . 5 . 3 . 1 1 1 3 2 . 1 Penetration Max 1 | . . . . 1 . . . . . . 1 1 . . 1 . . . . . . . . . . Secondary Targets 8 | . 3 1 . . . . . . 1 3 . . . . . . . . . . . . . . . Max Gunslinging Chain 1 | . 1 1 . . . . . . 1 1 . . . . . . . . . . . . . . . Shots Hit Robots 1092 | 4 40 56 73 135 3 . . 6 29 141 53 9 . . 71 16 34 . 18 8 5 287 30 13 61 Core Hits 1093 | 4 29 16 74 282 2 6 . 14 68 119 26 4 . . 120 11 20 . 12 5 3 180 12 6 80 Critical Kills 8 | . . 1 3 . . . . . 1 1 1 . . . 1 . . . . . . . . . . Critical Parts Destroyed 1 | . . . . . . . . . . . 1 . . . . . . . . . . . . . . Critical Strikes 39 | . . 1 3 10 . . . . 2 12 4 1 . . 3 . . . . . . 2 . . 1 Burn 2 | . . . . . . . . . 1 1 . . . . . . . . . . . . . . . Meltdown 5 | . . 1 3 . . . . . 1 . . . . . . . . . . . . . . . . Destroy 4 | . . . . . . . . . . 1 2 . . . 1 . . . . . . . . . . Blast 10 | . . . . 10 . . . . . . . . . . . . . . . . . . . . . Corrupt 12 | . . . . . . . . . . 7 2 1 . . 1 . . . . . . 1 . . . Sever 6 | . . . . . . . . . . 3 . . . . 1 . . . . . . 1 . . 1 Melee Attacks 37 | . . . . . . . . . 4 30 3 . . . . . . . . . . . . . . Impact . | . . . . . . . . . . . . . . . . . . . . . . . . . . Slashing 37 | . . . . . . . . . 4 30 3 . . . . . . . . . . . . . . Piercing . | . . . . . . . . . . . . . . . . . . . . . . . . . . Sneak Attacks 1 | . . . . . . . . . 1 . . . . . . . . . . . . . . . . Combat Hostiles . | . . . . . . . . . . . . . . . . . . . . . . . . . . Follow-up Attacks . | . . . . . . . . . . . . . . . . . . . . . . . . . . Damage Inflicted 73886 | 55 1035 1052 5270 10575 50 192 . 546 2256 5812 1288 240 . . 7285 1150 2173 . 1470 525 260 20422 2031 478 9721 Guns 5656 | 55 478 592 . 1240 . . . . 468 1704 740 143 . . 131 . . . . . . 75 30 . . Cannons 28446 | . . 460 1647 2239 50 . . . 141 507 538 97 . . 2028 876 1642 . 833 525 260 12283 1216 478 2626 Explosions 37068 | . 557 . 3623 7073 . 192 . 546 1581 1409 . . . . 4917 274 531 . 637 . . 7954 785 . 6989 Melee 2258 | . . . . . . . . . 66 2192 . . . . . . . . . . . . . . . Ramming 44 | . . . . 23 . . . . . . 10 . . . . . . . . . . 11 . . . Kinetic 6332 | 21 392 495 2719 2239 . . . . . 136 185 96 . . 49 . . . . . . . . . . Thermal 29446 | 34 86 557 1515 1258 50 . . . 609 1200 204 97 . . 2157 876 1642 . 833 525 260 12678 1216 478 3171 Explosive 29396 | . 557 . 1036 6696 . 192 . 546 1581 1358 . . . . 4698 274 531 . 637 . . 4061 785 . 6444 Electromagnetic 5996 | . . . . 359 . . . . . 926 889 47 . . 172 . . . . . . 3573 30 . . Impact . | . . . . . . . . . . . . . . . . . . . . . . . . . . Slashing 2672 | . . . . . . . . . 66 2192 . . . . 209 . . . . . . 99 . . 106 Piercing . | . . . . . . . . . . . . . . . . . . . . . . . . . . Highest Corruption 24 | . . . 8 7 7 2 2 2 3 1 6 6 6 6 . . 2 2 . . . 16 16 16 24 Average Corruption 6 | . . . 7 3 2 2 2 2 2 1 3 6 6 6 . . 2 1 . . . 8 16 16 16 Corruption Purged 20 | . . . . . 5 . . . 2 1 . . . . . . . 2 . . . 10 . . . Corruption Blocked . | . . . . . . . . . . . . . . . . . . . . . . . . . . Effects 422 | . . . 11 64 10 6 . 11 7 . 14 19 36 2 . . 7 3 . . . 98 40 28 66 Message Errors 106 | . . . 3 18 2 2 . 2 2 . 4 2 13 1 . . 2 1 . . . 18 12 5 19 Matter Fused 93 | . . . 2 14 2 2 . 3 2 . 3 6 6 . . . 3 1 . . . 25 8 5 11 Heat Flow Errors 40 | . . . 1 7 2 . . . 1 . 1 3 4 1 . . . . . . . 7 3 4 6 Energy Discharges 68 | . . . 1 10 3 2 . 4 . . 2 1 3 . . . . 1 . . . 19 8 6 8 Parts Rejected 3 | . . . . . . . . . . . 1 . . . . . . . . . . 1 . . 1 Parts Fused 3 | . . . . . . . . . . . . . . . . . . . . . . 2 . . 1 Data Loss (minor) 43 | . . . 1 6 1 . . 1 . . 2 3 5 . . . 2 . . . . 10 2 2 8 Data Loss (major) 28 | . . . 1 3 . . . 1 . . 1 1 3 . . . . . . . . 5 5 3 5 Misfires 12 | . . . 1 2 . . . . 1 . . 1 2 . . . . . . . . . 1 2 2 Alerts 8 | . . . . 2 . . . . 1 . . 1 . . . . . . . . . 2 1 1 . Misdirections 2 | . . . . . . . . . . . . . . . . . . . . . . 1 . . 1 Weapon Failures 16 | . . . 1 2 . . . . . . . 1 . . . . . . . . . 8 . . 4 Overload Shots 26 | . . . . . . . . . . . 5 . 12 3 . 5 1 . . . . . . . . Effects 1 | . . . . . . . . . . . . . . . . . 1 . . . . . . . . Short Circuit 1 | . . . . . . . . . . . . . . . . . 1 . . . . . . . . Overflow Damage 2598 | . . . 41 174 . 6 . 7 12 191 25 9 . . 100 180 209 . 195 18 . 982 29 12 408 Projectiles 1565 | . . . 7 129 . . . . 2 . 25 9 . . 21 137 120 . 8 18 . 780 29 12 268 Explosions 861 | . . . 34 45 . 6 . 7 10 19 . . . . 79 43 89 . 187 . . 202 . . 140 Melee 172 | . . . . . . . . . . 172 . . . . . . . . . . . . . . . Knockbacks 12 | . . . . 12 . . . . . . . . . . . . . . . . . . . . . Impact . | . . . . . . . . . . . . . . . . . . . . . . . . . . Kinetic 11 | . . . . 11 . . . . . . . . . . . . . . . . . . . . . Secondary 1 | . . . . 1 . . . . . . . . . . . . . . . . . . . . . Self-Inflicted Damage 1004 | . 39 . 151 210 . 44 . 23 28 154 . . . . . . 63 . 54 . . 101 . . 137 Shots 35 | . 1 . 4 7 . 2 . 1 1 7 . . . . . . 1 . 1 . . 8 . . 2 Rammed 3 | . . . . . . . . . . . 2 . . . . . . . . . . 1 . . . Targets Rammed 8 | . . . . 5 . . . . . . 2 . . . . . . . . . . 1 . . . Kicked 5 | . . . . 5 . . . . . . . . . . . . . . . . . . . . . Crushed . | . . . . . . . . . . . . . . . . . . . . . . . . . . Highest Temperature 564 | . 22 195 372 507 215 . . . 564 499 432 254 224 109 424 141 2 . 11 . . 238 416 174 265 Average Temperature 120 | . 6 50 107 93 78 . . . 166 171 156 70 70 27 139 59 2 . 4 . . 58 158 77 122 Received Heat Transfer 4216 | . 99 234 405 957 . . . . 153 730 255 27 18 . 81 36 27 . 63 . 9 724 398 . . Effects 51 | . . . 5 6 . . . . 12 15 5 . 2 . 6 . . . . . . . . . . Shutdowns 11 | . . . . 1 . . . . 2 3 4 . . . 1 . . . . . . . . . . Energy Bleed 9 | . . . 1 3 . . . . 2 . 1 . . . 2 . . . . . . . . . . Interference 19 | . . . 4 2 . . . . 4 4 . . 2 . 3 . . . . . . . . . . Matter Decay 2 | . . . . . . . . . . 2 . . . . . . . . . . . . . . . Short Circuit 1 | . . . . . . . . . . 1 . . . . . . . . . . . . . . . Damage (minor) 1 | . . . . . . . . . . 1 . . . . . . . . . . . . . . . Damage (major) 8 | . . . . . . . . . 4 4 . . . . . . . . . . . . . . . Siege Activations 36 | . . . . . . . . . . 1 5 1 . . 4 1 4 . . . 1 16 1 2 . Total Turns 593 | . . . . . . . . . . 27 62 1 . . 91 3 45 . . . 1 253 48 62 . Longest Duration 53 | . . . . . . . . . . 27 18 1 . . 44 3 23 . . . 1 53 48 43 . Martial Activations . | . . . . . . . . . . . . . . . . . . . . . . . . . . Shielding Activations . | . . . . . . . . . . . . . . . . . . . . . . . . . . Robots Disrupted 7 | . . . . 1 . . . . . 2 2 . . . . . . . . . . 2 . . . Combat Hostiles 6 | . . . . . . . . . . 2 2 . . . . . . . . . . 2 . . . Robots Corrupted 19 | . . . . . . . . . . 1 3 . . . 1 . . . . . . 14 . . . Combat Hostiles 19 | . . . . . . . . . . 1 3 . . . 1 . . . . . . 14 . . . Parts Fried 33 | . . . . 1 . . . . . 4 7 . . . . . . . . . . 21 . . . Impact Corruptions . | . . . . . . . . . . . . . . . . . . . . . . . . . . Robots Melted 9 | . . 1 4 . . . . . 1 2 . . . . 1 . . . . . . . . . . Combat Hostiles 8 | . . 1 4 . . . . . . 2 . . . . 1 . . . . . . . . . . Parts Melted 53 | . . 1 6 8 . . . . 6 10 . . . . 4 2 2 . . . 1 12 1 . . Heat Transferred 24465 | 75 200 754 2035 2600 74 . . . 1285 2675 350 150 . . 2125 725 930 . 450 250 125 6975 675 275 1737 Parts Sabotaged 3 | . . . . . . . . . . . 3 . . . . . . . . . . . . . . Parts Stolen . | . . . . . . . . . . . . . . . . . . . . . . . . . . Parts Stripped . | . . . . . . . . . . . . . . . . . . . . . . . . . . Power Chain Reactions 17 | . . . . 1 . . . . . 1 . . . . 1 . . . . . . 10 . . 4 Alert | -11 -10 -10 -8 -7 -7 -7 -7 -6 -6 -6 -6 -6 -6 -6 -6 -5 -5 -5 -5 -5 -4 -4 -4 -4 -4 ------- Run | Yrd Mat Sub Mat Fac Low Low Dat Pro Fac Gar Fac Low Low Zio Dee Pro Fac Upp Upp Zhi Pro Fac Upp Upp War Maximum Alert Level 5 | . 1 . 3 5 . . . . 2 5 3 . . . . . 1 . . . . 5 . . . Low Security (%) 17 | 100 53 . 21 . . . . . 39 . . . . . . . 48 . . . . 25 . . . Level 1 25 | . 46 . 9 47 . . . . 35 2 . . . . . . 51 . . . . 21 . . . Level 2 14 | . . . 49 17 . . . . 24 29 5 . . . . . . . . . . . . . . Level 3 19 | . . . 19 4 . . . . . 30 94 . . . . . . . . . . 11 . . . Level 4 12 | . . . . 18 . . . . . 35 . . . . . . . . . . . 12 . . . Level 5 8 | . . . . 3 . . . . . 3 . . . . . . . . . . . 27 . . . High Security 2 | . . . . 9 . . . . . . . . . . . . . . . . . . . . . Max Security . | . . . . . . . . . . . . . . . . . . . . . . . . . . Peak Influence 2889 | 10 286 . 861 1881 . . . . 560 1600 896 . . . . . 304 . . . . 2889 . . . Initial 840 | . . . 9 385 . . . . 300 380 840 . . . . . 150 . . . . . . . . Average 701 | 3 124 . 461 752 . . . . 270 986 782 . . . . . 202 . . . . 950 . . . Influence Increases 13650 | 20 502 185 1400 2372 70 70 . 120 904 1380 730 185 121 . . 148 686 . 235 15 30 3562 190 70 655 Destroy 0b10 Robot/C 7460 | . 320 120 760 1180 60 60 . 80 300 600 420 160 100 . . 120 280 . 200 . 20 1820 160 60 640 Destroy 0b10 Robot/NC 670 | 20 30 . 80 225 . . . 10 55 35 15 . . . . 15 10 . . 15 . 145 . . 15 Destroy Leader 1350 | . 68 20 204 278 10 10 . 30 82 40 120 10 10 . . 10 62 . 20 . 10 326 30 10 . Allied During Kill 96 | . . . . . . . . . . . 67 15 11 . . 3 . . . . . . . . . Successful Hack 222 | . 10 . 10 28 . . . . 5 14 54 . . . . . 14 . . . . 87 . . . Disable Machine 1035 | . 30 . 75 315 . . . . 90 15 45 . . . . . 90 . . . . 375 . . . Anti-Garrison Action 600 | . . . . . . . . . . 600 . . . . . . . . . . . . . . . Destroy Structure 1452 | . 29 . 211 271 . . . . 72 76 9 . . . . . 80 . . . . 704 . . . Advance Influence 450 | . . . . . . . . . 300 . . . . . . . 150 . . . . . . . . Lose Combat Pursuer 315 | . 15 45 60 75 . . . . . . . . . . . . . . 15 . . 105 . . . Influence Decreases 13231 | 20 276 393 569 1340 1059 513 449 120 360 324 1438 649 549 . . 148 436 250 159 91 30 675 1487 605 1291 Entered New Map 5833 | . . 110 9 464 697 171 449 . . 164 760 331 82 . . . . 93 . 76 . . 1069 303 1055 Time Decay 6528 | 20 276 253 480 716 362 342 . 120 350 . 538 318 457 . . 148 416 157 159 15 30 575 398 302 96 Lost Part 750 | . . 30 80 160 . . . . 10 160 40 . 10 . . . . . . . . 100 20 . 140 Lost Ally 120 | . . . . . . . . . . . 100 . . . . . 20 . . . . . . . . Squads Dispatched 91 | . 2 . 8 30 . . . . 9 . 10 . . . . . 3 . . . . 29 . . . Investigation 5 | . 1 . 1 1 . . . . 2 . . . . . . . . . . . . . . . . Extermination 20 | . . . . 7 . . . . 2 . 3 . . . . . 1 . . . . 7 . . . Reinforcement 26 | . 1 . 3 9 . . . . 2 . 2 . . . . . 1 . . . . 8 . . . Assault 25 | . . . 1 13 . . . . . . 3 . . . . . . . . . . 8 . . . Garrison 15 | . . . 3 . . . . . 3 . 2 . . . . . 1 . . . . 6 . . . Intercept . | . . . . . . . . . . . . . . . . . . . . . . . . . . Searches Triggered . | . . . . . . . . . . . . . . . . . . . . . . . . . . Data Miner Redirects 4 | . . . . . . . . . . . 1 . . . . . . . . . . 3 . . . Construction Impeded 12 | . . . 2 5 . . . . 2 . . . . . . . . . . . . 3 . . . Haulers Reinforced 3 | . . . . 3 . . . . . . . . . . . . . . . . . . . . . Active Scanning Responses . | . . . . . . . . . . . . . . . . . . . . . . . . . . Cargo Convoy Interrupts 1 | . . . . . . . . . . . . . . . . . . . . . . 1 . . . Stealth | -11 -10 -10 -8 -7 -7 -7 -7 -6 -6 -6 -6 -6 -6 -6 -6 -5 -5 -5 -5 -5 -4 -4 -4 -4 -4 --------- Run | Yrd Mat Sub Mat Fac Low Low Dat Pro Fac Gar Fac Low Low Zio Dee Pro Fac Upp Upp Zhi Pro Fac Upp Upp War Distress Signals 25 | . 2 . 3 7 . . . 1 2 . 2 . . . . . . . . . . 4 . . 4 Communications Jammed . | . . . . . . . . . . . . . . . . . . . . . . . . . . Distress Signals . | . . . . . . . . . . . . . . . . . . . . . . . . . . Times Spotted 550 | . 23 12 46 88 4 3 . 7 17 31 27 9 4 . 69 7 16 . 10 . 1 115 6 2 53 Peak Tracking Total 37 | . 6 5 9 7 1 3 . 3 6 7 5 4 4 . 37 3 3 . 5 . 1 7 5 2 13 Tactical Retreats 18 | . 1 1 3 3 1 . . . . . . . . . 3 . . . 1 . . 5 . . . Traps | -11 -10 -10 -8 -7 -7 -7 -7 -6 -6 -6 -6 -6 -6 -6 -6 -5 -5 -5 -5 -5 -4 -4 -4 -4 -4 ------- Run | Yrd Mat Sub Mat Fac Low Low Dat Pro Fac Gar Fac Low Low Zio Dee Pro Fac Upp Upp Zhi Pro Fac Upp Upp War Traps Triggered 14 | . 1 . 1 . . . . . . 4 . . . . . . . . . . . 5 . . 3 Indirectly 1 | . . . . . . . . . . . . . . . . . . . . . . 1 . . . Trap Hack Attempts . | . . . . . . . . . . . . . . . . . . . . . . . . . . Triggered . | . . . . . . . . . . . . . . . . . . . . . . . . . . Disarmed . | . . . . . . . . . . . . . . . . . . . . . . . . . . Reprogrammed . | . . . . . . . . . . . . . . . . . . . . . . . . . . Reused . | . . . . . . . . . . . . . . . . . . . . . . . . . . Traps Extracted . | . . . . . . . . . . . . . . . . . . . . . . . . . . Installed . | . . . . . . . . . . . . . . . . . . . . . . . . . . Triggered . | . . . . . . . . . . . . . . . . . . . . . . . . . . Machines | -11 -10 -10 -8 -7 -7 -7 -7 -6 -6 -6 -6 -6 -6 -6 -6 -5 -5 -5 -5 -5 -4 -4 -4 -4 -4 ---------- Run | Yrd Mat Sub Mat Fac Low Low Dat Pro Fac Gar Fac Low Low Zio Dee Pro Fac Upp Upp Zhi Pro Fac Upp Upp War Machines Disabled 85 | . 2 1 5 21 1 . . . 6 6 3 . . 3 3 . 6 . . 1 . 25 . . 2 Max in Single Turn 5 | . 1 1 1 5 1 . . . 3 1 1 . . 1 1 . 4 . . 1 . 5 . . 1 Garrison Access 3 | . . . 1 . . . . . . . . . . . . . 2 . . . . . . . . Garrison Relay 5 | . . . . . . . . . . 5 . . . . . . . . . . . . . . . Machines Repaired . | . . . . . . . . . . . . . . . . . . . . . . . . . . Machines Dismantled . | . . . . . . . . . . . . . . . . . . . . . . . . . . Machines Sabotaged . | . . . . . . . . . . . . . . . . . . . . . . . . . . Overloaded Fab Kills . | . . . . . . . . . . . . . . . . . . . . . . . . . . Hacking | -11 -10 -10 -8 -7 -7 -7 -7 -6 -6 -6 -6 -6 -6 -6 -6 -5 -5 -5 -5 -5 -4 -4 -4 -4 -4 --------- Run | Yrd Mat Sub Mat Fac Low Low Dat Pro Fac Gar Fac Low Low Zio Dee Pro Fac Upp Upp Zhi Pro Fac Upp Upp War Machines Accessed 77 | . 8 3 6 8 1 . 4 . 6 2 8 . . 1 . . 6 . . 9 . 13 . . 2 Terminals 34 | . 6 . 5 5 1 . . . 2 2 4 . . . . . 2 . . . . 7 . . . Fabricators 5 | . . . . 1 . . . . 2 . 2 . . . . . . . . . . . . . . Repair Stations 7 | . 1 . . 2 . . . . 1 . . . . . . . . . . . . 3 . . . Recycling Units 8 | . 1 . . . . . . . . . 2 . . . . . 2 . . . . 3 . . . Scanalyzers . | . . . . . . . . . . . . . . . . . . . . . . . . . . Garrison Access 4 | . . . 1 . . . . . 1 . . . . . . . 2 . . . . . . . . Total Hacks 248 | . 23 15 18 16 1 . 29 . 20 3 19 . . 5 . . 10 . . 48 . 36 . . 5 Successful 169 | . 11 15 6 4 1 . 29 . 12 1 8 . . 5 . . 4 . . 48 . 20 . . 5 Failed 79 | . 12 . 12 12 . . . . 8 2 11 . . . . . 6 . . . . 16 . . . Catastrophic 14 | . 1 . 1 3 . . . . 2 1 3 . . . . . 1 . . . . 2 . . . Database Lockouts . | . . . . . . . . . . . . . . . . . . . . . . . . . . Manual 58 | . 15 . 17 1 1 . . . 8 . 5 . . . . . 1 . . . . 9 . . 1 Terminals 91 | . 19 . 17 13 1 . . . 7 3 10 . . . . . 4 . . . . 17 . . . Fabricators 10 | . . . . 1 . . . . 6 . 3 . . . . . . . . . . . . . . Repair Stations 20 | . 2 . . 2 . . . . 4 . . . . . . . . . . . . 12 . . . Recycling Units 17 | . 2 . . . . . . . . . 6 . . . . . 2 . . . . 7 . . . Scanalyzers . | . . . . . . . . . . . . . . . . . . . . . . . . . . Garrison Access 8 | . . . 1 . . . . . 3 . . . . . . . 4 . . . . . . . . Terminal Hacks 113 | . 1 15 . 2 1 . 29 . . 1 2 . . 5 . . . . . 48 . 4 . . 5 Record 66 | . 1 13 . . 1 . 11 . . . . . . . . . . . . 36 . . . . 4 Part Schematic 19 | . . . . . . . 10 . . . . . . 5 . . . . . 4 . . . . . Robot Schematic 6 | . . . . 1 . . 5 . . . . . . . . . . . . . . . . . . Robot Analysis 6 | . . . . . . . . . . . . . . . . . . . . 4 . 2 . . . Prototype ID Bank 8 | . . . . . . . 3 . . . 1 . . . . . . . . 4 . . . . . Open Door 2 | . . 1 . . . . . . . . . . . . . . . . . . . . . . 1 Branch Access Points 2 | . . . . . . . . . . . 1 . . . . . . . . . . 1 . . . Emergency Access Points 1 | . . . . . . . . . . 1 . . . . . . . . . . . . . . . Locate Traps 1 | . . . . . . . . . . . . . . . . . . . . . . 1 . . . Surveillance Status 1 | . . . . 1 . . . . . . . . . . . . . . . . . . . . . Proto ID Catalog 1 | . . 1 . . . . . . . . . . . . . . . . . . . . . . . Fabricator Hacks 8 | . . . . 1 . . . . 5 . 2 . . . . . . . . . . . . . . Network Status 3 | . . . . 1 . . . . 1 . 1 . . . . . . . . . . . . . . Load Schematic 2 | . . . . . . . . . 2 . . . . . . . . . . . . . . . . Build 3 | . . . . . . . . . 2 . 1 . . . . . . . . . . . . . . Repair Station Hacks 14 | . 2 . . . . . . . 2 . . . . . . . . . . . . 10 . . . Scan Component 8 | . 1 . . . . . . . 1 . . . . . . . . . . . . 6 . . . Repair 6 | . 1 . . . . . . . 1 . . . . . . . . . . . . 4 . . . Recycling Unit Hacks 3 | . . . . . . . . . . . 1 . . . . . 1 . . . . 1 . . . Retrieve Components 3 | . . . . . . . . . . . 1 . . . . . 1 . . . . 1 . . . Scanalyzer . | . . . . . . . . . . . . . . . . . . . . . . . . . . Garrison Access Hacks 4 | . . . 1 . . . . . 1 . . . . . . . 2 . . . . . . . . Unlock Access 1 | . . . . . . . . . 1 . . . . . . . . . . . . . . . . Seal Access 3 | . . . 1 . . . . . . . . . . . . . 2 . . . . . . . . Unauthorized Hacks 27 | . 8 . 5 1 . . . . 4 . 3 . . . . . 1 . . . . 5 . . . Terminals 22 | . 8 . 5 1 . . . . 3 . 2 . . . . . 1 . . . . 2 . . . Track 1 | . . . . . . . . . 1 . . . . . . . . . . . . . . . . Botnet 14 | . 6 . 2 1 . . . . 1 . 1 . . . . . 1 . . . . 2 . . . Detonate 1 | . 1 . . . . . . . . . . . . . . . . . . . . . . . . Disrupt 1 | . . . 1 . . . . . . . . . . . . . . . . . . . . . . Operators 5 | . 1 . 2 . . . . . 1 . 1 . . . . . . . . . . . . . . Fabricators 1 | . . . . . . . . . 1 . . . . . . . . . . . . . . . . Prioritize 1 | . . . . . . . . . 1 . . . . . . . . . . . . . . . . Repair Stations . | . . . . . . . . . . . . . . . . . . . . . . . . . . Recycling Units 4 | . . . . . . . . . . . 1 . . . . . . . . . . 3 . . . Reject 1 | . . . . . . . . . . . . . . . . . . . . . . 1 . . . Recyclers 1 | . . . . . . . . . . . . . . . . . . . . . . 1 . . . Mask 2 | . . . . . . . . . . . 1 . . . . . . . . . . 1 . . . Scanalyzers . | . . . . . . . . . . . . . . . . . . . . . . . . . . Garrison Access . | . . . . . . . . . . . . . . . . . . . . . . . . . . Data Cores Recovered . | . . . . . . . . . . . . . . . . . . . . . . . . . . Used . | . . . . . . . . . . . . . . . . . . . . . . . . . . Hacking Detections 48 | . 8 . 5 7 . . . . 5 2 6 . . . . . 3 . . . . 12 . . . Full Trace Events 4 | . . . . 1 . . . . 2 1 . . . . . . . . . . . . . . . Feedback Events . | . . . . . . . . . . . . . . . . . . . . . . . . . . Feedback Blocked . | . . . . . . . . . . . . . . . . . . . . . . . . . . Robot Schematics Acquired 6 | . . . . 1 . . 5 . . . . . . . . . . . . . . . . . . Robots Built 3 | . . . . . . . . . . . 3 . . . . . . . . . . . . . . Authchips . | . . . . . . . . . . . . . . . . . . . . . . . . . . Time 152 | . . . . . . . . . . . 152 . . . . . . . . . . . . . . Total Robot Build Rating 15 | . . . . . . . . . . . 15 . . . . . . . . . . . . . . Part Schematics Acquired 19 | . . . . . . . 10 . . . . . . 5 . . . . . 4 . . . . . Parts Built 2 | . . . . . . . . . 2 . . . . . . . . . . . . . . . . Authchips . | . . . . . . . . . . . . . . . . . . . . . . . . . . Time 253 | . . . . . . . . . 253 . . . . . . . . . . . . . . . . Total Part Build Rating 12 | . . . . . . . . . 12 . . . . . . . . . . . . . . . . Parts Repaired 6 | . 1 . . . . . . . 1 . . . . . . . . . . . . 4 . . . Time 368 | . 26 . . . . . . . 70 . . . . . . . . . . . . 272 . . . Parts Recycled . | . . . . . . . . . . . . . . . . . . . . . . . . . . Recycled Matter . | . . . . . . . . . . . . . . . . . . . . . . . . . . Retrieved Matter . | . . . . . . . . . . . . . . . . . . . . . . . . . . Retrieved Components 7 | . . . . . . . . . . . 1 . . . . . 3 . . . . 3 . . . Parts Scanalyzed . | . . . . . . . . . . . . . . . . . . . . . . . . . . Part Schematics Acquired . | . . . . . . . . . . . . . . . . . . . . . . . . . . Parts Damaged . | . . . . . . . . . . . . . . . . . . . . . . . . . . Bothacking | -11 -10 -10 -8 -7 -7 -7 -7 -6 -6 -6 -6 -6 -6 -6 -6 -5 -5 -5 -5 -5 -4 -4 -4 -4 -4 ------------ Run | Yrd Mat Sub Mat Fac Low Low Dat Pro Fac Gar Fac Low Low Zio Dee Pro Fac Upp Upp Zhi Pro Fac Upp Upp War Used RIF Installer . | . . . . . . . . . . . . . . . . . . . . . . . . . . Robots Hacked . | . . . . . . . . . . . . . . . . . . . . . . . . . . Non-combat . | . . . . . . . . . . . . . . . . . . . . . . . . . . Combat . | . . . . . . . . . . . . . . . . . . . . . . . . . . Robot Hacks Applied . | . . . . . . . . . . . . . . . . . . . . . . . . . . Relay Couplers Released 25 | . . . . 4 . . . . . 18 . . . . . . . . . . . 3 . . . Machine Destruction 18 | . . . . . . . . . . 18 . . . . . . . . . . . . . . . Programmers 7 | . . . . 4 . . . . . . . . . . . . . . . . . 3 . . . Fabnet Peak Effective % . | . . . . . . . . . . . . . . . . . . . . . . . . . . Robots Rewired 1 | . . . . . . . . . . 1 . . . . . . . . . . . . . . . Allies Hacked . | . . . . . . . . . . . . . . . . . . . . . . . . . . Hacks Repelled . | . . . . . . . . . . . . . . . . . . . . . . . . . . Allies | -11 -10 -10 -8 -7 -7 -7 -7 -6 -6 -6 -6 -6 -6 -6 -6 -5 -5 -5 -5 -5 -4 -4 -4 -4 -4 -------- Run | Yrd Mat Sub Mat Fac Low Low Dat Pro Fac Gar Fac Low Low Zio Dee Pro Fac Upp Upp Zhi Pro Fac Upp Upp War Total Allies 8 | . . . . . . . . . . 1 3 . . 4 . . . . . . . . . . . Largest Group 4 | . . . . . . . . . . 1 3 . . 4 4 1 . . . . . . . . . Highest-Rated Group 112 | . . . . . . . . . . 34 87 . . 112 112 26 . . . . . . . . . Highest-Rated Ally 34 | . . . . . . . . . . 34 29 . . 31 31 26 . . . . . . . . . Initial Warlord ECA Mod 111 | . . . . . . . . . . . 9 9 9 9 9 8 8 8 8 8 7 7 4 4 4 Warlord Squad Rendezvous 3 | . . . . . . . . . . . . . . . . . . . . . . 3 . . . Dakka 2 | . . . . . . . . . . . . . . . . . . . . . . 2 . . . Ghost 1 | . . . . . . . . . . . . . . . . . . . . . . 1 . . . Total Orders 57 | . . . . . . . . . . . 6 2 4 . 18 . 14 . . . 2 3 4 4 . STAY 1 | . . . . . . . . . . . . . . . 1 . . . . . . . . . . EXPLORE 14 | . . . . . . . . . . . . . 1 . 6 . 7 . . . . . . . . RETURN 42 | . . . . . . . . . . . 6 2 3 . 11 . 7 . . . 2 3 4 4 . Ally Attacks 447 | . . . . . . . . . . 2 146 37 32 . 224 6 . . . . . . . . . Total Damage 7770 | . . . . . . . . . . 185 2493 627 603 . 3815 47 . . . . . . . . . Kills 44 | . . . . . . . . . . 1 10 7 5 . 21 . . . . . . . . . . Allies Corrupted . | . . . . . . . . . . . . . . . . . . . . . . . . . . Allies Melted 1 | . . . . . . . . . . . . . . . . . . . . . . . . . 1 Intel | -11 -10 -10 -8 -7 -7 -7 -7 -6 -6 -6 -6 -6 -6 -6 -6 -5 -5 -5 -5 -5 -4 -4 -4 -4 -4 ------- Run | Yrd Mat Sub Mat Fac Low Low Dat Pro Fac Gar Fac Low Low Zio Dee Pro Fac Upp Upp Zhi Pro Fac Upp Upp War Active Infowar (turns) 20899 | 9 401 . 766 3617 778 765 94 318 595 . 939 622 1099 586 . . 90 1225 1614 431 1108 3015 913 671 1243 Optics 484 | . . . . . . . . . . . . . . 5 . . . . . . . 479 . . . Sensors 19090 | . . . . 3617 778 765 94 318 593 . 939 622 1099 581 . . 90 1225 1614 431 1108 2536 913 671 1096 Seismic 1176 | 9 401 . 766 . . . . . . . . . . . . . . . . . . . . . . Cloaking 150 | . . . . . . . . . . . . . . . . . . . . . . . . . 150 ECM 6 | . . . . . 4 . . . 2 . . . . . . . . . . . . . . . . Robot Analysis Total 6 | . . . . . . . . . . . . . . . . . . . . 4 . 2 . . . Derelict Logs Recovered 16 | . . 1 . . 2 2 . 1 . . . 1 1 1 . 1 . . 1 . . . 3 2 . Drone Launches 85 | . . . . . . . . . . . 13 4 6 . 14 . 12 . . . 6 9 12 9 . Drone Recoveries 80 | . . . . . . . . . . . 11 4 6 . 13 . 10 . . . 6 9 12 9 . Exploration | -11 -10 -10 -8 -7 -7 -7 -7 -6 -6 -6 -6 -6 -6 -6 -6 -5 -5 -5 -5 -5 -4 -4 -4 -4 -4 ------------- Run | Yrd Mat Sub Mat Fac Low Low Dat Pro Fac Gar Fac Low Low Zio Dee Pro Fac Upp Upp Zhi Pro Fac Upp Upp War Turns Passed 34752 | 80 1103 2987 1565 3637 820 765 94 696 781 2172 1530 705 1169 1446 1955 684 1011 1225 1654 443 1136 3948 956 671 1519 Spaces Moved 17496 | 37 573 1650 535 1291 775 607 76 290 365 1034 791 410 674 881 928 397 517 717 840 213 619 1852 463 335 626 Core 436 | 3 . . . 57 262 . . 104 7 . . . . . . . . . . . . . . . 3 Treads 14707 | 34 573 1650 535 1053 . . . . 106 496 791 410 674 881 928 397 517 717 840 213 619 1852 463 335 623 Legs 2072 | . . . . 181 513 607 76 186 . 509 . . . . . . . . . . . . . . . Wheels 281 | . . . . . . . . . 252 29 . . . . . . . . . . . . . . . Hover . | . . . . . . . . . . . . . . . . . . . . . . . . . . Flight . | . . . . . . . . . . . . . . . . . . . . . . . . . . Fastest Speed 50 | 50 160 160 160 50 50 125 125 125 140 120 160 160 160 160 160 160 160 160 160 160 160 160 160 170 170 Average Speed 166 | 151 160 160 229 245 101 125 125 205 166 164 160 160 160 160 160 160 160 160 160 160 160 160 161 170 188 Slowest Speed 1250 | 160 160 160 320 335 200 125 125 350 400 320 160 160 160 160 160 160 160 160 160 240 160 160 240 170 1250 Overloaded Moves . | . . . . . . . . . . . . . . . . . . . . . . . . . . Propulsion Burnouts . | . . . . . . . . . . . . . . . . . . . . . . . . . . Robots Hopped . | . . . . . . . . . . . . . . . . . . . . . . . . . . Potential Cave-ins 5 | . . . . . . . . . . . . . . . . . . . . . . . 2 . 3 Cave-ins Triggered 1 | . . . 1 . . . . . . . . . . . . . . . . . . . . . . Teleports 1 | . . . . . . . . . . . . . . . . . . . . . . . . . 1 Exploration Rate (%) 63 | 4 96 91 51 48 79 85 68 42 11 78 23 59 73 87 87 61 24 80 93 62 67 63 73 56 79 Regions Visited 25 Branch Regions 17 Pre-discovered Areas 8 | . . 1 . . . . 1 . . . . 2 . . . . . . . 3 . . 1 . . Known Exits Taken 18 | . . . . 1 1 1 1 1 1 . 1 1 1 . . 1 1 1 1 1 1 1 1 1 . Unknown Exits Taken 6 | 1 1 1 1 . . . . . . . . . . 1 1 . . . . . . . . . . Scrap Searched 35 | . . 9 . . 2 1 . 1 . . . . 4 4 . 1 . 5 2 . 4 . 1 1 . Spaces Dug 256 | . . 1 39 27 . . . 30 3 . 4 . 5 . 33 28 . . 3 . 9 51 12 3 8 Terrain Destroyed 1818 | . 32 5 235 313 . 21 . 119 77 30 7 2 13 . 64 45 50 . 45 . 11 419 78 9 243 Melee 6 | . . . . . . . . . 3 . 3 . . . . . . . . . . . . . . Projectile 295 | . . 5 30 50 . . . . . . 4 2 13 . 26 8 11 . 5 . 11 87 20 9 14 AOE 1517 | . 32 . 205 263 . 21 . 119 74 30 . . . . 38 37 39 . 40 . . 332 58 . 229 Terrain Rammed . | . . . . . . . . . . . . . . . . . . . . . . . . . . Walls Destroyed . | . . . . . . . . . . . . . . . . . . . . . . . . . . Machines Disabled . | . . . . . . . . . . . . . . . . . . . . . . . . . . Actions | -11 -10 -10 -8 -7 -7 -7 -7 -6 -6 -6 -6 -6 -6 -6 -6 -5 -5 -5 -5 -5 -4 -4 -4 -4 -4 --------- Run | Yrd Mat Sub Mat Fac Low Low Dat Pro Fac Gar Fac Low Low Zio Dee Pro Fac Upp Upp Zhi Pro Fac Upp Upp War Total 21320 | 50 685 1870 739 1541 800 610 75 355 485 1315 971 447 754 916 1258 422 662 795 1128 303 752 2459 623 422 883 Wait 1961 | . 48 109 38 55 6 . . 45 48 75 67 9 41 2 168 12 91 76 273 61 111 293 102 78 153 Move 17471 | 36 572 1649 534 1290 774 606 75 289 364 1033 790 409 673 880 927 396 516 716 839 212 618 1851 462 334 626 Hop . | . . . . . . . . . . . . . . . . . . . . . . . . . . Pick Up 215 | 3 13 15 31 24 1 . . . 18 18 19 6 4 5 16 . 11 . . 3 3 15 1 . 9 Fast Attach 86 | 7 1 . 3 6 8 . . . 7 15 3 2 6 8 3 . . . . 3 . 8 . . 6 Attach 94 | . . 3 8 15 . . . 2 5 11 9 6 5 3 4 . 2 . . . 1 10 3 . 7 Detach 37 | . . . . 1 1 . . . 1 . 1 . 1 1 . 1 2 . 1 . 1 18 2 1 5 Swap 244 | . 9 3 29 22 1 3 . 2 11 20 31 . 2 2 31 2 7 1 1 8 5 30 7 3 14 Drop 237 | . 3 12 20 22 4 . . . 5 22 11 8 9 12 25 . 13 2 . 9 5 26 12 . 17 Fire 904 | 4 39 79 76 101 5 1 . 17 22 68 33 7 12 3 84 11 20 . 14 7 8 207 34 6 46 Melee 37 | . . . . . . . . . 4 30 3 . . . . . . . . . . . . . . Ram . | . . . . . . . . . . . . . . . . . . . . . . . . . . Kick 5 | . . . . 5 . . . . . . . . . . . . . . . . . . . . . Crush 3 | . . . . . . . . . . . 2 . . . . . . . . . . 1 . . . Escape Stasis 16 | . . . . . . . . . . 16 . . . . . . . . . . . . . . . Rewire 7 | . . . . . . . . . . 7 . . . . . . . . . . . . . . . Trap . | . . . . . . . . . . . . . . . . . . . . . . . . . . Miscellaneous 3 | . . . . . . . . . . . 2 . 1 . . . . . . . . . . . . Route ------- -11/Scrapyard -10/Materials (discovered 6 exits: [*Mat x3] / [*Min x2] / *Sub) -10/Subcaves (discovered 2 exits: *Mat x2) -8/Materials -7/Factory (discovered 4 exits: *Fac x2 / *Low x2) -7/Lower Caves -7/Lower Caves (discovered 2 exits: *Fac / *Dat) -7/Data Miner -6/Proximity Caves -6/Factory -6/Garrison (discovered 3 exits: *Fac x3) -6/Factory (discovered 4 exits: *Fac x2 / *Low x2) -6/Lower Caves -6/Lower Caves -6/Zion (discovered 2 exits: [*Dee] / [*Pro]) -6/Deep Caves -5/Proximity Caves -5/Factory (discovered 4 exits: *Fac / *Upp x2 / [*Ext]) -5/Upper Caves -5/Upper Caves -5/Zhirov -4/Proximity Caves -4/Factory (discovered 3 exits: Res / *Upp x2) -4/Upper Caves (discovered 2 exits: *Upp / *War) -4/Upper Caves -4/Warlord History --------- Turn | Location | Event 8 | -11/Scrapyard | Discovered new exit (range 15) 81 | -11/Scrapyard | Entered Materials 280 | -10/Materials | Discovered new exit (range 11) 302 | -10/Materials | Build established: Mutant 330 | -10/Materials | Discovered new exit (range 10) 455 | -10/Materials | Discovered new exit (range 5) 615 | -10/Materials | Discovered new exit (range 15) 658 | -10/Materials | Destroyed 8 combat bots 746 | -10/Materials | Discovered new exit (range 12) 1111 | -10/Materials | Repaired Lgt. Treads 1130 | -10/Materials | Discovered new exit (range 8) 1184 | -10/Materials | Entered Subcaves 1185 | -10/Subcaves | Approached by a straggling Scientist 1189 | -10/Subcaves | A swath of the cavern ceiling suddenly collapsed 1321 | -10/Subcaves | Lost 3 parts (1p2n) 1384 | -10/Subcaves | A swath of the cavern ceiling suddenly collapsed 2024 | -10/Subcaves | Visited 4L-MR0's lab 2044 | -10/Subcaves | Found Power Bank 2147 | -10/Subcaves | Shifting Twisted Machinery released Sub. Shrapnel Launcher 2163 | -10/Subcaves | Shifting Twisted Machinery released Sub. Machine Gun 2464 | -10/Subcaves | Shifting Twisted Machinery released Mak. System Shield 2615 | -10/Subcaves | Shifting Twisted Machinery released Sub. Beam Cannon 2772 | -10/Subcaves | Learned Materials terminal intel 2829 | -10/Subcaves | Discovered new exit (range 5) 3325 | -10/Subcaves | Core integrity fell below 50% 3392 | -10/Subcaves | Visited Clippyterm 3396 | -10/Subcaves | Learned Factory trap positions 3396 | -10/Subcaves | Learned Factory emergency access door positions 3727 | -10/Subcaves | Discovered new exit (range 13) 3744 | -10/Subcaves | Learned location of Zion (-6) 3744 | -10/Subcaves | Met a Zionite searching for "candidates" 4171 | -10/Subcaves | Entered Materials 4171 | -8/Materials | Evolved 4 slots: Propulsion x2, Utility x2 4172 | -8/Materials | Loaded intel: 12 terminal locations 5016 | -8/Materials | Build established: Scavenger-Mutant 5326 | -8/Materials | Discovered new exit (range 9) 5371 | -8/Materials | First assault squad dispatched 5379 | -8/Materials | Garrison activated, responded to threat 5413 | -8/Materials | Crushed by falling debris 5441 | -8/Materials | Destroyed 8 combat bots 5444 | -8/Materials | Lost 7 parts (1p2n3u1w) 5680 | -8/Materials | Build established: Mutant 5736 | -8/Materials | Entered Factory 5736 | -7/Factory | Evolved 2 slots: Utility x1, Weapon x1 5737 | -7/Factory | Loaded intel: 97 trap records 6126 | -7/Factory | Discovered new exit (range 4) 6201 | -7/Factory | Discovered new exit (range 11) 6225 | -7/Factory | Identified exit to Factory 6391 | -7/Factory | Build established: Scavenger-Skirmisher 6424 | -7/Factory | Discovered new exit (range 4) 6432 | -7/Factory | Identified exit to Lower Caves 6765 | -7/Factory | Discovered exit to Lower Caves (range 8) 7020 | -7/Factory | Build established: Skirmisher 7723 | -7/Factory | Found Prototype Launcher 7723 | -7/Factory | Identified Rocket Array 7732 | -7/Factory | Found Rocket Array 8136 | -7/Factory | First assault squad dispatched 8290 | -7/Factory | Destroyed 7 combat bots 8679 | -7/Factory | Destroyed 7 combat bots 8707 | -7/Factory | Lost 3 parts (1p1n1w) 8945 | -7/Factory | Lost 3 parts (2n1w) 9038 | -7/Factory | High security lockdown imminent 9118 | -7/Factory | High security lockdown engaged 9373 | -7/Factory | Entered Lower Caves 9481 | -7/Lower Caves | Learned Factory emergency access door positions 9793 | -7/Lower Caves | Learned Factory terminal intel 9802 | -7/Lower Caves | Build established: Derelict-Mutant 9967 | -7/Lower Caves | Discovered new exit (range 8) 10098 | -7/Lower Caves | Acquired the password to a Derelict Tinkerer's latest research 10108 | -7/Lower Caves | Found Prototype Special Weapon 10108 | -7/Lower Caves | Identified Molecular Deconstructor 10148 | -7/Lower Caves | Build established: Mutant 10192 | -7/Lower Caves | Identified exit to Lower Caves 10193 | -7/Lower Caves | Entered another Lower Caves area 10238 | -7/Lower Caves | Discovered exit to Factory (range 6) 10424 | -7/Lower Caves | Encountered a Warlord checkpoint 10434 | -7/Lower Caves | Learned Factory stockpile data 10493 | -7/Lower Caves | Build established: Gunner 10940 | -7/Lower Caves | Discovered new exit (range 5) 10957 | -7/Lower Caves | Identified exit to Data Miner 10958 | -7/Lower Caves | Entered Data Miner 10958 | -7/Data Miner | Discovered new exit (range 6) 10982 | -7/Data Miner | Met Data Miner 11003 | -7/Data Miner | Learned location of Section 7 (-3) 11003 | -7/Data Miner | Acquired the access code to Warlord's prototype stash 11023 | -7/Data Miner | Received God Mode back door access code from Data Miner 11051 | -7/Data Miner | Identified exit to Proximity Caves 11052 | -7/Data Miner | Entered Proximity Caves 11131 | -6/Proximity Caves | Spotter reported a threat 11250 | -6/Proximity Caves | Spotter reported a threat 11313 | -6/Proximity Caves | Learned Factory security intel 11375 | -6/Proximity Caves | Core integrity fell below 50% 11408 | -6/Proximity Caves | Lost 5 parts (1p3n1u) 11706 | -6/Proximity Caves | Discovered exit to Factory (range 13) 11748 | -6/Proximity Caves | Entered Factory 11748 | -6/Factory | Evolved 2 slots: Power x1, Utility x1 11752 | -6/Factory | Loaded intel: 24 terminal locations 11936 | -6/Factory | Build established: Mutant 11950 | -6/Factory | Repaired Rocket Array 12205 | -6/Factory | Fabricated Combat Drone Bay? 12210 | -6/Factory | Garrison activated, responded to threat 12268 | -6/Factory | Identified exit to Garrison 12409 | -6/Factory | Fabricated Combat Drone Bay? 12469 | -6/Factory | Spotted B-75 Beast 12529 | -6/Factory | Entered Garrison 12567 | -6/Garrison | Triggered checkpoint 12726 | -6/Garrison | Garrison Relay disabled 12795 | -6/Garrison | Triggered checkpoint 12799 | -6/Garrison | Triggered checkpoint 12806 | -6/Garrison | Triggered checkpoint 12858 | -6/Garrison | Destroyed 8 combat bots 12860 | -6/Garrison | Lost 8 parts (2p2n1u3w) 13235 | -6/Garrison | Triggered checkpoint 13291 | -6/Garrison | Garrison Relay disabled 13317 | -6/Garrison | Discovered new exit (range 15) 13347 | -6/Garrison | Identified exit to Factory 13732 | -6/Garrison | Discovered exit to Factory (range 12) 13737 | -6/Garrison | Build established: Scavenger-Gunner 13874 | -6/Garrison | Garrison Relay disabled 13949 | -6/Garrison | Discovered exit to Factory (range 15) 14145 | -6/Garrison | Triggered checkpoint 14209 | -6/Garrison | Garrison Relay disabled 14211 | -6/Garrison | Garrison Relay disabled 14582 | -6/Garrison | Build established: Scavenger-Mutant 14701 | -6/Garrison | Entered Factory 15025 | -6/Factory | Discovered new exit (range 15) 15046 | -6/Factory | Identified exit to Factory 15051 | -6/Factory | First assault squad dispatched 15073 | -6/Factory | Identified exit to Lower Caves 15104 | -6/Factory | Fabricated G-50 Soldier? 15214 | -6/Factory | Lost 3 parts (2p1w) 15426 | -6/Factory | Incoming assault squad redirected 15471 | -6/Factory | Build established: Gunner 15628 | -6/Factory | Discovered exit to Factory (range 16) 15981 | -6/Factory | Spotted B-75 Beast 16007 | -6/Factory | Allies destroyed B-75 Beast 16231 | -6/Factory | Entered Lower Caves 16237 | -6/Lower Caves | Met a Warlord Commander 16238 | -6/Lower Caves | Learned location of Warlord (-4) 16239 | -6/Lower Caves | Warlord Commander delivered Encrypted Comm Array 16251 | -6/Lower Caves | Found Encrypted Comm Array 16306 | -6/Lower Caves | Encountered a Warlord checkpoint 16537 | -6/Lower Caves | Build established: Scavenger-Gunner 16794 | -6/Lower Caves | Discovered new exit (range 15) 16934 | -6/Lower Caves | Identified exit to Lower Caves 16936 | -6/Lower Caves | Entered another Lower Caves area 17242 | -6/Lower Caves | Discovered new exit (range 4) 17247 | -6/Lower Caves | Identified exit to Zion 17563 | -6/Lower Caves | Learned Factory trap positions 17956 | -6/Lower Caves | Found DCF Scrap (14 items) 18105 | -6/Lower Caves | Entered Zion 18174 | -6/Zion | System corruption cleaned by Quarantine Array 18201 | -6/Zion | Gained Derelict followers 18238 | -6/Zion | Discovered new exit (range 16) 18675 | -6/Zion | Found Prototype Special Weapon 18675 | -6/Zion | Identified RU-N14's Throwing Claymores 18683 | -6/Zion | Found RU-N14's Throwing Claymores 18689 | -6/Zion | Found RU-N14's Throwing Claymores 18691 | -6/Zion | Found RU-N14's Throwing Claymores 18768 | -6/Zion | Given the Hacking Drone Bay 18771 | -6/Zion | Found Prototype Device 18771 | -6/Zion | Identified Hacking Drone Bay 18946 | -6/Zion | Found Prototype Processor 18946 | -6/Zion | Identified Spectral Analyzer 18949 | -6/Zion | Found Prototype Processor 18949 | -6/Zion | Identified Exp. Target Analyzer 18956 | -6/Zion | Found Prototype Processor 18956 | -6/Zion | Identified Exp. Melee Analysis Suite 18960 | -6/Zion | Found Exp. Targeting Computer 19002 | -6/Zion | Build established: Scavenger-Tank 19204 | -6/Zion | Learned Factory emergency access door positions 19277 | -6/Zion | Met Imprinter 19541 | -6/Zion | Discovered new exit (range 4) 19541 | -6/Zion | Saw the warning signs outside the Deep Caves entrance 19551 | -6/Zion | Entered Deep Caves 19551 | -6/Deep Caves | Accompanied by 4 allies 19553 | -6/Deep Caves | Met 5H-AD0 19606 | -6/Deep Caves | Z-Facility disabled 19735 | -6/Deep Caves | Destroyed Z-Imprinter 19864 | -6/Deep Caves | Build established: Scavenger-Gunner 19927 | -6/Deep Caves | Found Prototype Protection 19927 | -6/Deep Caves | Identified Zio. Weapon Casing 20065 | -6/Deep Caves | Found Zio. Weapon Casing 20099 | -6/Deep Caves | Thanked by 5H-AD0 20263 | -6/Deep Caves | Discovered new exit (range 25) 20325 | -6/Deep Caves | Spotted AG-65497 20336 | -6/Deep Caves | Destroyed AG-65497 20571 | -6/Deep Caves | Spotted AG-28593 20574 | -6/Deep Caves | Destroyed AG-28593 20751 | -6/Deep Caves | Exposed GOLEM chamber 20752 | -6/Deep Caves | Triggered Deep Caves wall 20752 | -6/Deep Caves | Spotted AS-68978 20753 | -6/Deep Caves | Core integrity fell below 50% 20764 | -6/Deep Caves | Destroyed AS-68978 20768 | -6/Deep Caves | Destroyed AS-76375 20792 | -6/Deep Caves | Destroyed 34 combat bots 20817 | -6/Deep Caves | Found Mobile Assembly Unit 20832 | -6/Deep Caves | Found GOLEM Unit 20840 | -6/Deep Caves | Found GOLEM Unit 20842 | -6/Deep Caves | Found GOLEM Unit 20848 | -6/Deep Caves | Found GOLEM Unit 20860 | -6/Deep Caves | Found GOLEM Unit 20864 | -6/Deep Caves | Found GOLEM Unit 21028 | -6/Deep Caves | Destroyed 9 combat bots 21160 | -6/Deep Caves | Build established: Scavenger-Golem 21493 | -6/Deep Caves | Build established: Golem 21506 | -6/Deep Caves | Entered Proximity Caves 21506 | -5/Proximity Caves | Accompanied by 1 ally 21538 | -5/Proximity Caves | Learned Factory non-interactive machine intel 21566 | -5/Proximity Caves | Attracted the attention of an 0b10 checkpoint 21699 | -5/Proximity Caves | Spotter reported a threat 22140 | -5/Proximity Caves | Discovered exit to Factory (range 7) 22190 | -5/Proximity Caves | Entered Factory 22190 | -5/Factory | Evolved 2 slots: Utility x2 22191 | -5/Factory | Loaded intel: 81 trap records 22193 | -5/Factory | Loaded intel: 221 non-interactive machine locations 22400 | -5/Factory | Discovered new exit (range 12) 22475 | -5/Factory | Discovered new exit (range 23) 22617 | -5/Factory | Discovered new exit (range 9) 22630 | -5/Factory | Discovered new exit (range 41) 22770 | -5/Factory | Garrison activated, responded to threat 23199 | -5/Factory | Identified exit to Upper Caves 23201 | -5/Factory | Entered Upper Caves 23958 | -5/Upper Caves | Discovered new exit (range 11) 23974 | -5/Upper Caves | Identified exit to Upper Caves 24426 | -5/Upper Caves | Entered another Upper Caves area 25099 | -5/Upper Caves | Encountered a Warlord checkpoint 25111 | -5/Upper Caves | Learned 8 Factory zone layouts 25289 | -5/Upper Caves | Discovered new exit (range 16) 26078 | -5/Upper Caves | Identified exit to Zhirov 26080 | -5/Upper Caves | Entered Zhirov 26080 | -5/Zhirov | Discovered new exit (range 3) 26144 | -5/Zhirov | Learned location of Quarantine (-3) 26144 | -5/Zhirov | Learned location of Testing (-2) 26144 | -5/Zhirov | Learned location of Command (-1) 26196 | -5/Zhirov | Found Alien Artifact 26196 | -5/Zhirov | Identified Integrated Reactor 26196 | -5/Zhirov | Installed Integrated Reactor, increased core energy generation (+10) 26404 | -5/Zhirov | Found Alien Artifact 26522 | -5/Zhirov | Identified exit to Proximity Caves 26523 | -5/Zhirov | Entered Proximity Caves 27274 | -4/Proximity Caves | Discovered new exit (range 9) 27351 | -4/Proximity Caves | Spotted B-86 Titan 27356 | -4/Proximity Caves | Destroyed B-86 Titan 27595 | -4/Proximity Caves | Identified exit to Factory 27659 | -4/Proximity Caves | Entered Factory 27659 | -4/Factory | Evolved 2 slots: Utility x2 27660 | -4/Factory | Identified exit to Research 27863 | -4/Factory | Repaired Broken Imp. Heavy Treads? 27935 | -4/Factory | Repaired Imp. Heavy Treads? 28255 | -4/Factory | Joined by Warlord Dakka squad 28689 | -4/Factory | Allied Derelicts emerged from ambush trap array 29046 | -4/Factory | Repaired Imp. Heavy Treads? 29522 | -4/Factory | Garrison activated, responded to threat 29585 | -4/Factory | Destroyed 14 combat bots 29915 | -4/Factory | Found Prototype Launcher 29915 | -4/Factory | Identified Mni. Smartbomb Launcher 30159 | -4/Factory | First assault squad dispatched 30174 | -4/Factory | Garrison activated, responded to threat 30447 | -4/Factory | System corruption reached 10% 30550 | -4/Factory | Cargo convoy interrupted 30585 | -4/Factory | Destroyed 13 combat bots 30609 | -4/Factory | Lost 3 parts (1n2w) 30675 | -4/Factory | Incoming assault squad redirected 30685 | -4/Factory | Incoming assault squad redirected 30771 | -4/Factory | Joined by Warlord Dakka squad 30816 | -4/Factory | Identified exit to Upper Caves 30900 | -4/Factory | Repaired Imp. Heavy Treads 31125 | -4/Factory | Build established: Hacker-Golem 31182 | -4/Factory | Joined by Warlord Ghost squad 31275 | -4/Factory | Lost 3 allies 31320 | -4/Factory | Core integrity fell below 50% 31429 | -4/Factory | Incoming assault squad redirected 31532 | -4/Factory | Destroyed 8 combat bots 31607 | -4/Factory | Entered Upper Caves 31623 | -4/Upper Caves | Learned Research emergency access door positions 31697 | -4/Upper Caves | Learned Research emergency access door positions 32392 | -4/Upper Caves | Spotted B-86 Titan 32416 | -4/Upper Caves | Destroyed B-86 Titan 32530 | -4/Upper Caves | Discovered new exit (range 14) 32550 | -4/Upper Caves | Identified exit to Upper Caves 32555 | -4/Upper Caves | A Derelict revealed a hidden shortcut to "reach the base" 32555 | -4/Upper Caves | Identified exit to Warlord 32563 | -4/Upper Caves | Entered another Upper Caves area 32575 | -4/Upper Caves | Learned 8 Research zone layouts 32705 | -4/Upper Caves | Learned Research garrison access intel 33000 | -4/Upper Caves | Discovered exit to Warlord (range 8) 33234 | -4/Upper Caves | Entered Warlord 33626 | -4/Warlord | Met Warlord 33651 | -4/Warlord | Warlord's base attacked by MAIN.C 33757 | -4/Warlord | Found Prototype Special Weapon 33757 | -4/Warlord | Identified RU-N14's Throwing Claymores v3 33762 | -4/Warlord | Found RU-N14's Throwing Claymores v3 33765 | -4/Warlord | Found RU-N14's Throwing Claymores v3 33768 | -4/Warlord | Found RU-N14's Throwing Claymores v3 33861 | -4/Warlord | Opened Warlord's prototype stash 33869 | -4/Warlord | Found Prototype Reactor 33869 | -4/Warlord | Identified Vortex Chain Reactor 33874 | -4/Warlord | Found Prototype Device 33874 | -4/Warlord | Identified Exp. Cloaking Device 33883 | -4/Warlord | Found Prototype Device 33883 | -4/Warlord | Identified Exp. Focal Shield 34001 | -4/Warlord | Warlord forces counterattacked 34016 | -4/Warlord | Build established: Golem 34060 | -4/Warlord | Lost 5 allies 34078 | -4/Warlord | Found Prototype Energy Gun 34078 | -4/Warlord | Identified Vortex Shotgun 34086 | -4/Warlord | Found Prototype Energy Gun 34086 | -4/Warlord | Identified Vortex Rifle 34091 | -4/Warlord | Found Vortex Rifle 34101 | -4/Warlord | Found Vortex Shotgun 34241 | -4/Warlord | Spotted Striker 34291 | -4/Warlord | Lost 4 allies 34326 | -4/Warlord | Warlord base infiltrated, sounded retreat 34327 | -4/Warlord | Enhanced Grunt warped into view 34327 | -4/Warlord | Enhanced Grunt warped into view 34327 | -4/Warlord | Enhanced Grunt warped into view 34327 | -4/Warlord | Enhanced Demolisher warped into view 34327 | -4/Warlord | Enhanced Demolisher warped into view 34327 | -4/Warlord | Enhanced Demolisher warped into view 34386 | -4/Warlord | Spotted Striker 34389 | -4/Warlord | Destroyed Striker 34396 | -4/Warlord | Spotted Executioner 34404 | -4/Warlord | Destroyed Executioner 34429 | -4/Warlord | Spotted Executioner 34429 | -4/Warlord | Destroyed Executioner 34465 | -4/Warlord | Spotted Executioner 34472 | -4/Warlord | Destroyed Executioner 34477 | -4/Warlord | Found Prototype Processor 34477 | -4/Warlord | Identified Exp. Melee Analysis Suite 34478 | -4/Warlord | Spotted Executioner 34486 | -4/Warlord | Destroyed Executioner 34492 | -4/Warlord | Lost 18 allies 34507 | -4/Warlord | Destroyed 15 combat bots 34509 | -4/Warlord | Found Prototype Processor 34509 | -4/Warlord | Identified Exp. Core Analyzer 34524 | -4/Warlord | Spotted Striker 34578 | -4/Warlord | Lost 5 allies 34579 | -4/Warlord | Spotted Striker 34585 | -4/Warlord | Destroyed Striker 34600 | -4/Warlord | Core integrity fell below 20% 34603 | -4/Warlord | Spotted Striker 34605 | -4/Warlord | Spotted Executioner 34611 | -4/Warlord | Spotted Executioner 34621 | -4/Warlord | Destroyed Striker 34621 | -4/Warlord | Destroyed Executioner 34626 | -4/Warlord | Identified Transdimensional Reconstructor 34626 | -4/Warlord | Warped through subspace 34642 | -4/Warlord | Destroyed 16 combat bots 34655 | -4/Warlord | Lost 12 parts (1p2n6u3w) 34753 | -4/Warlord | Destroyed by G-67 Veteran with Field Laser Last Messages --------------- 34626_ The unstable cave ceiling collapses. 34626_ Identified Transdimensional Reconstructor. 34626_ Warped through subspace. 34629_ GOLEM Unit beginning Asb. Alloy Leg integration. 34641_ ANNOUNCEMENT: MAIN.C reinforcements approaching through caves, arriving soon. 34642_ TLRQDCK7U